bitfinex-derivatives/quotes_ETHF0:USTF0_20250627
["timestamp","ask_amount","ask_price","bid_price","bid_amount"]
[1751040933770,4.9971,2433.7,2433.6,32.53546]
[1751040934078,4.9971,2433.7,2433.6,10.57826147]
[1751040934282,4.9971,2433.7,2433.6,32.53446]
[1751040934971,4.9971,2433.7,2433.5,3.21580147]
[1751040935171,4.9971,2433.7,2433.4,4.02932]
[1751040935172,0.82149,2433.5,2433.4,4.02932]
[1751040935374,0.82149,2433.5,2433.4,28.3798]
[1751040935779,0.82149,2433.5,2433.4,3.2078]
[1751040936080,0.82149,2433.5,2433.4,28.3788]
[1751040936379,0.82148,2433.6,2433.4,29.20033]
[1751040936580,0.92137652,2433.5,2433.4,32.97977572]
[1751040937177,0.09988652,2433.5,2433.4,32.97977572]
[1751040937381,0.09988652,2433.5,2433.4,29.20033]
[1751040937581,0.09988652,2433.5,2433.4,33.78273147]
[1751040940087,0.09988652,2433.5,2433.4,38.78273147]
[1751040942582,4.9971,2433.9,2433.8,0.82139]
[1751040942786,0.7173,2434.3,2433.8,35.74019]
[1751040942975,0.9245,2434.2,2434.1,4.02908]
[1751040943177,0.2411,2434.2,2434.1,35.74308]
[1751040944780,0.82113,2434.6,2434.4,0.82118]
[1751040945082,0.82113,2434.6,2434.5,25.175]
[1751040945482,1.03439692,2434.6,2434.5,25.99616]
[1751040945683,6.03149692,2434.6,2434.5,25.99616]
[1751040945883,6.85261692,2434.6,2434.5,25.175]
[1751040946087,8.12699692,2434.6,2434.5,25.175]
[1751040946279,8.94811692,2434.6,2434.5,25.175]
[1751040946589,8.94811692,2434.6,2434.5,25.24]
[1751040947780,7.91372,2434.6,2434.5,25.24]
[1751040948383,7.91372,2434.6,2434.5,26.06116]
[1751040950591,7.0926,2434.6,2434.5,26.06116]
[1751040951288,7.91372,2434.6,2434.5,26.06116]
[1751040951491,7.91372,2434.6,2434.5,25.24]
[1751040952391,7.91372,2434.6,2434.5,26.06116]
[1751040952994,7.0926,2434.6,2434.5,26.06116]
[1751040953292,7.91372,2434.6,2434.5,26.06116]
[1751040954097,7.0926,2434.6,2434.5,26.06116]
[1751040955696,5.7041,2434.6,2434.5,29.84060572]
[1751040955989,5.7041,2434.6,2434.5,26.06116]
[1751040956292,4.9971,2434.6,2434.5,26.06116]
[1751040956493,4.9971,2434.6,2434.5,28.19926]
[1751040956687,4.9971,2434.6,2434.5,33.19926]
[1751040956997,0.7302,2435.0,2434.9,0.82102]
[1751040957297,5.7273,2435.0,2434.9,36.37046572]
[1751040958093,4.9971,2435.0,2434.9,32.59102]
[1751040958294,0.712,2435.2,2435.1,0.82095]
[1751040958487,1.74282623,2435.2,2435.1,26.03595]
[1751040958795,0.7365,2435.2,2435.1,26.03595]
[1751040959291,0.7365,2435.2,2435.1,28.99444572]
[1751040959489,0.7365,2435.2,2435.1,29.81539572]
[1751040959891,0.7365,2435.2,2435.1,28.99444572]
[1751040960195,0.7365,2435.2,2435.1,32.20224572]
[1751040960590,0.7365,2435.2,2435.1,33.02319572]
[1751040964495,0.7365,2435.2,2435.1,29.24375]
[1751040964689,0.7365,2435.2,2435.1,33.02319572]
[1751040964987,0.0245,2435.2,2435.1,29.24375]
[1751040965394,0.0245,2435.2,2435.1,30.60545]
[1751040966185,0.6956,2435.4,2435.3,0.82089]
[1751040966491,0.6956,2435.4,2435.3,32.55389]
[1751040966688,4.0285,2435.9,2435.3,31.733]
[1751040966888,0.7124,2435.8,2435.7,0.82072]
[1751040967193,2.99402,2435.8,2435.7,25.178]
[1751040968198,2.1733,2435.8,2435.7,25.99875]
[1751040968593,2.99402,2435.8,2435.7,25.99875]
[1751040968894,2.99402,2435.8,2435.7,25.178]
[1751040969395,2.99402,2435.8,2435.7,25.99875]
[1751040970000,2.99402,2435.8,2435.7,25.178]
[1751040970797,0.82081,2435.6,2435.5,0.82081]
[1751040970992,0.82081,2435.6,2435.5,31.726]
[1751040971200,2.84801,2435.6,2435.5,31.726]
[1751040971693,0.82082,2435.5,2435.4,3.2078]
[1751040971893,0.82082,2435.5,2434.8,3.50551]
[1751040971894,5.12004572,2435.5,2435.3,6.555]
[1751040972100,5.94086572,2435.5,2435.4,25.168]
[1751040972304,5.94086572,2435.5,2434.8,4.02882]
[1751040972305,0.82102,2434.9,2434.8,4.02882]
[1751040972594,4.60046572,2434.9,2434.8,34.9368]
[1751040972796,1.50501,2435.0,2434.9,0.82102]
[1751040972996,1.50501,2435.0,2434.9,25.177]
[1751040973203,0.82102,2434.9,2434.8,6.555]
[1751040973605,0.82112,2434.6,2434.5,9.7628]
[1751040973803,0.82112,2434.6,2434.5,31.737]
[1751040973999,3.77944572,2434.7,2434.5,31.737]
[1751040974000,4.60055572,2434.7,2434.5,31.737]
[1751040974198,3.8918,2435.0,2434.5,31.737]
[1751040974199,0.82112,2434.6,2434.5,31.737]
[1751040974703,0.82122,2434.3,2434.2,9.7628]
[1751040975003,4.60066572,2434.3,2434.2,31.74]
[1751040975205,5.28746572,2434.3,2434.2,25.185]
[1751040975404,1.50802,2434.3,2434.2,25.185]
[1751040975807,0.6868,2434.3,2434.2,26.00626]
[1751040976009,4.02894,2434.6,2434.2,25.185]
[1751040976202,0.82117,2434.5,2434.3,0.82122]
[1751040977107,0.6868,2434.8,2434.7,3.77944572]
[1751040977405,0.6868,2434.8,2434.7,29.82053572]
[1751040977705,6.98724572,2435.2,2434.7,25.22]
[1751040977899,0.82104,2434.9,2434.7,26.04108]
[1751040978099,0.6985,2435.1,2434.7,25.22]
[1751040978300,0.82104,2434.9,2434.7,26.04108]
[1751040978500,0.82105,2434.8,2434.7,25.22]
[1751040978700,0.6985,2435.1,2434.7,26.04109]
[1751040978701,0.82104,2434.9,2434.7,26.04109]
[1751040978903,0.82104,2434.9,2434.7,26.04106]
[1751040979103,0.82105,2434.8,2434.7,25.22]
[1751040979298,0.6985,2435.1,2434.7,25.22]
[1751040979504,0.82105,2434.8,2434.7,25.22]
[1751040980906,0.82112,2434.6,2434.5,3.2078]
[1751040981209,0.82112,2434.6,2434.5,34.9848]
[1751040982410,0.82112,2434.6,2434.5,35.80596]
[1751040983208,0.82112,2434.6,2434.5,34.9848]
[1751040985110,0.82112,2434.6,2434.5,35.80596]
[1751040985308,0.82112,2434.6,2434.5,34.9848]
[1751040986915,1.50162,2434.6,2434.5,34.9848]
[1751040987510,2.18332,2434.6,2434.5,34.9848]
[1751040987909,2.18332,2434.6,2434.5,31.777]
[1751040988608,3.57902,2434.6,2434.5,31.777]
[1751040989320,3.57902,2434.6,2434.5,32.59816]
[1751040989818,3.57902,2434.6,2434.5,31.777]
[1751040991312,0.82122,2434.3,2434.2,3.2078]
[1751040992118,4.67602,2434.3,2434.2,3.2078]
[1751040992323,0.82132,2434.0,2433.9,3.2078]
[1751040992621,0.82132,2434.0,2433.9,28.3958]
[1751040993718,0.82136,2433.9,2433.8,6.556]
[1751040993907,0.82136,2433.9,2433.8,31.739]
[1751040994109,0.82143,2433.7,2433.6,6.557]
[1751040994516,0.82143,2433.7,2433.6,31.74]
[1751040995316,2.21803,2433.7,2433.6,31.74]
[1751040996921,0.82143,2433.7,2433.6,31.74]
[1751040997908,2.14753,2433.7,2433.6,31.74]
[1751040998513,2.14753,2433.7,2433.6,6.557]
[1751040998714,2.14753,2433.7,2433.6,31.739]
[1751040999017,0.82156,2433.3,2433.2,0.7171]
[1751040999321,0.82156,2433.3,2433.2,25.9001]
[1751040999517,1.53643,2433.4,2433.2,25.183]
[1751040999825,0.82156,2433.3,2433.2,26.00459]
[1751041000023,1.53643,2433.4,2433.3,0.82156]
[1751041000223,0.82156,2433.3,2433.2,29.78617619]
[1751041000827,0.7267,2433.8,2433.4,3.78160619]
[1751041001030,0.82147,2433.6,2433.5,25.178]
[1751041001517,5.81857,2433.6,2433.5,25.178]
[1751041003322,0.82159,2433.2,2433.1,3.939]
[1751041003529,0.82159,2433.2,2433.1,35.691]
[1751041003824,0.82159,2433.2,2433.1,3.2078]
[1751041004031,2.05379,2433.5,2432.9,0.82169]
[1751041004032,0.82169,2433.0,2432.9,0.82169]
[1751041004222,0.82169,2433.0,2432.9,6.558]
[1751041004417,0.82169,2433.0,2432.9,31.751]
[1751041004629,0.82169,2433.0,2432.9,31.75]
[1751041004928,5.81879,2433.0,2432.9,31.75]
[1751041005925,5.81879,2433.0,2432.9,32.5717]
[1751041006130,5.81879,2433.0,2432.9,31.75]
[1751041006329,5.81879,2433.0,2432.9,32.5717]
[1751041006632,4.9971,2433.0,2432.9,32.5717]
[1751041007124,4.9971,2433.0,2432.9,31.75]
[1751041007125,5.81876,2433.0,2432.9,31.75]
[1751041007734,4.9971,2433.0,2432.9,32.5717]
[1751041008125,5.81876,2433.0,2432.9,31.75]
[1751041008325,5.81876,2433.0,2432.9,32.5717]
[1751041008526,5.81876,2433.0,2432.9,31.75]
[1751041008738,5.81876,2433.0,2432.9,32.5717]
[1751041009032,5.81876,2433.0,2432.9,31.75]
[1751041009426,4.9971,2433.0,2432.9,32.5667]
[1751041009628,5.81876,2433.0,2432.9,32.5667]
[1751041009827,4.9971,2433.0,2432.9,32.5667]
[1751041010736,4.9971,2433.0,2432.9,7.3807]
[1751041011029,4.9971,2433.0,2432.9,6.559]
[1751041011030,5.81876,2433.0,2432.9,6.559]
[1751041011230,0.8217,2432.9,2432.8,6.56]
[1751041011532,1.5195,2432.9,2432.8,32.56273]
[1751041011931,1.5195,2432.9,2432.7,26.00274]
[1751041012332,1.5195,2432.9,2432.8,0.82173]
[1751041014236,0.82173,2432.8,2432.7,26.00275]
[1751041014835,5.81883,2432.8,2432.7,26.00275]
[1751041015825,5.81883,2432.8,2432.7,26.00475]
[1751041017232,4.9971,2432.8,2432.7,26.00475]
[1751041017834,4.9971,2432.8,2432.7,27.38735]
[1751041019139,3.2078,2433.1,2433.0,0.82166]
[1751041019343,0.82166,2433.0,2432.9,26.00567]
[1751041019540,0.5374,2433.0,2432.9,26.00567]
[1751041020133,0.5374,2433.0,2432.9,29.78727619]
[1751041020542,0.8217,2432.9,2432.8,7.36171]
[1751041020848,0.8217,2432.9,2432.8,32.54571]
[1751041021141,0.8217,2432.9,2432.8,31.724]
[1751041021536,0.5374,2433.0,2432.9,0.8217]
[1751041021929,3.2078,2433.2,2432.6,0.6645]
[1751041022132,3.2078,2433.2,2432.2,3.2078]
[1751041022133,0.8219,2432.3,2432.2,3.2078]
[1751041022739,3.78160619,2432.4,2432.1,25.195]
[1751041022939,0.82197,2432.1,2432.0,6.54]
[1751041023140,0.82197,2432.1,2432.0,31.734]
[1751041023340,0.82196,2432.2,2432.0,32.55599]
[1751041023544,5.73,2432.2,2432.1,0.82197]
[1751041023739,6.55193,2432.2,2432.0,32.55599]
[1751041024139,5.73,2432.2,2432.1,0.82197]
[1751041024436,4.9971,2432.2,2432.1,0.82197]
[1751041024637,3.2078,2432.9,2432.1,6.3617]
[1751041024844,0.7168,2432.8,2432.7,0.82175]
[1751041025038,0.7168,2432.8,2432.7,0.82176]
[1751041025632,0.7168,2432.8,2432.6,28.98060619]
[1751041025833,5.7139,2432.8,2432.7,0.82176]
[1751041026239,4.9971,2432.8,2432.7,0.82176]
[1751041026443,4.9971,2432.8,2432.7,5.96506619]
[1751041026951,4.9971,2432.8,2432.7,4.60336619]
[1751041027443,4.9971,2432.8,2432.7,7.81116619]
[1751041027640,0.7168,2433.2,2432.9,3.78160619]
[1751041027837,0.7168,2433.2,2433.0,0.82165]
[1751041028145,0.7168,2433.2,2433.1,0.82163]
[1751041028337,1.53841,2433.2,2433.0,0.82164]
[1751041028538,1.53841,2433.2,2432.9,32.4407]
[1751041028539,0.82163,2433.1,2432.9,33.26238]
[1751041028941,2.47723,2433.1,2432.9,32.56268]
[1751041029140,1.05576,2433.0,2432.9,31.741]
[1751041029351,3.14826,2433.0,2432.9,31.741]
[1751041031545,3.14826,2433.0,2432.9,32.5627]
[1751041031740,0.2341,2433.0,2432.9,32.5627]
[1751041032449,1.05576,2433.0,2432.9,31.741]
[1751041032852,1.05576,2433.0,2432.9,32.5627]
[1751041033054,0.2341,2433.0,2432.9,32.5627]
[1751041033255,1.05576,2433.0,2432.9,32.5627]
[1751041034050,1.05576,2433.0,2432.9,31.741]
[1751041034559,0.2341,2433.0,2432.9,32.5627]
[1751041035653,0.82165,2433.1,2432.9,32.5627]
[1751041035954,0.82165,2433.1,2432.9,31.741]
[1751041036147,6.53552,2433.2,2432.9,31.741]
[1751041036348,5.7139,2433.2,2433.1,0.82163]
[1751041036551,6.53551,2433.2,2433.1,25.191]
[1751041037441,4.9971,2433.2,2433.1,26.01263]
[1751041038048,4.9971,2433.2,2433.1,33.27513647]
[1751041038443,3.8994,2433.5,2433.1,33.89640647]
[1751041038741,1.03478147,2433.4,2433.1,33.89640647]
[1751041038947,0.022,2433.3,2433.2,7.36259]
[1751041039248,0.022,2433.3,2433.2,14.62509647]
[1751041040155,0.022,2433.3,2433.2,19.94549372]
[1751041040357,0.6916,2433.9,2433.6,0.82146]
[1751041040358,3.43533,2433.7,2433.6,0.82146]
[1751041040557,2.6139,2433.7,2433.6,32.55046]
[1751041042258,3.43532,2433.7,2433.6,31.729]
[1751041042960,3.43532,2433.7,2433.6,32.55046]
[1751041043562,2.6139,2433.7,2433.6,32.55046]
[1751041043754,3.43532,2433.7,2433.6,31.729]
[1751041044960,4.78542,2433.7,2433.6,31.729]
[1751041046761,4.78542,2433.7,2433.6,6.541]
[1751041048265,4.78542,2433.7,2433.6,7.36246]
[1751041048461,3.964,2433.7,2433.6,7.36246]
[1751041049163,2.6139,2433.7,2433.6,7.36246]
[1751041049350,3.43532,2433.7,2433.6,7.36246]
[1751041049549,2.6139,2433.7,2433.6,6.541]
[1751041049756,2.6139,2433.7,2433.6,7.36246]
[1751041050164,3.43532,2433.7,2433.6,7.36246]
[1751041050660,2.6139,2433.7,2433.6,14.62496647]
[1751041051560,2.6139,2433.7,2433.6,16.72086647]
[1751041051858,0.82133,2434.0,2433.6,15.89940647]
[1751041052063,4.9971,2434.1,2433.7,28.3898]
[1751041052258,0.82134,2434.0,2433.9,0.82135]
[1751041052468,6.3774,2434.1,2434.0,0.82132]
[1751041052663,4.9971,2434.1,2434.0,0.82132]
[1751041052859,4.9971,2434.1,2433.9,25.182]
[1751041053166,4.9971,2434.1,2434.0,0.82132]
[1751041053563,4.9971,2434.1,2434.0,4.02912]
[1751041053958,0.7178,2434.2,2434.1,0.82129]
[1751041054261,0.7178,2434.2,2434.1,26.00129]
[1751041054760,2.3134,2434.3,2434.2,0.82126]
[1751041054964,2.3134,2434.3,2434.2,14.62276647]
[1751041055163,1.7945,2434.5,2434.2,15.12230647]
[1751041055366,1.7945,2434.5,2434.4,0.82119]
[1751041056159,2.61567,2434.5,2434.3,26.0012]
[1751041056958,0.82119,2434.4,2434.3,25.18]
[1751041057168,2.15369,2434.4,2434.3,25.18]
[1751041059069,2.15369,2434.4,2434.3,26.00122]
[1751041060369,1.3325,2434.4,2434.3,26.00122]
[1751041060565,1.7945,2434.5,2434.4,0.82119]
[1751041061566,2.61566,2434.5,2434.3,25.18]
[1751041061762,2.61566,2434.5,2434.4,0.82119]
[1751041061956,0.82119,2434.4,2434.3,26.0012]
[1751041062161,2.61568,2434.5,2434.4,0.82119]
[1751041063070,2.61568,2434.5,2434.3,26.0012]
[1751041063369,0.82119,2434.4,2434.3,26.0012]
[1751041063571,1.7945,2434.5,2434.4,0.82119]
[1751041064164,2.61565,2434.5,2434.4,0.82119]
[1751041064474,2.61565,2434.5,2434.4,4.59920998]
[1751041065174,1.7945,2434.5,2434.4,4.59920998]
[1751041066069,2.1677,2434.7,2434.5,0.82112]
[1751041066269,0.82112,2434.6,2434.5,25.99412]
[1751041066477,0.82112,2434.6,2434.5,25.99415]
[1751041066673,0.82112,2434.6,2434.5,32.53215]
[1751041066874,0.82112,2434.6,2434.5,31.711]
[1751041067076,0.82112,2434.6,2434.2,6.538]
[1751041067077,3.77801998,2434.5,2434.2,6.538]
[1751041067272,2.28329,2434.4,2434.3,25.173]
[1751041069371,0.82122,2434.3,2434.2,6.538]
[1751041069579,6.77303998,2434.3,2434.2,31.709]
[1751041069873,2.99502,2434.3,2434.2,31.709]
[1751041070775,1.53292,2434.3,2434.2,32.53026]
[1751041073378,0.7117,2434.3,2434.2,32.53026]
[1751041074074,0.7117,2434.3,2434.2,36.30827998]
[1751041074274,9.02609,2434.4,2434.3,4.59923998]
[1751041074480,3.2078,2434.4,2434.3,4.59923998]
[1751041075178,3.2078,2434.4,2434.3,5.27883998]
[1751041075475,4.9971,2434.6,2434.5,4.59916998]
[1751041075672,4.9971,2434.6,2434.5,32.52915]
[1751041076169,0.82101,2435.0,2434.8,0.82102]
[1751041076370,1.51902,2434.9,2434.8,25.171]
[1751041076572,3.92042,2434.9,2434.8,25.171]
[1751041076779,3.92042,2434.9,2434.8,25.99205]
[1751041077376,4.95201029,2434.9,2434.8,25.99205]
[1751041077580,4.95201029,2434.9,2434.8,25.171]
[1751041078674,4.13099029,2434.9,2434.8,29.77006998]
[1751041078983,2.4014,2434.9,2434.8,37.52805]
[1751041079174,0.698,2435.4,2435.3,0.82089]
[1751041079374,0.698,2435.4,2435.3,25.99089]
[1751041079375,6.72690603,2435.4,2435.3,25.99089]
[1751041080281,7.54775603,2435.4,2435.3,25.17]
[1751041080875,6.72690603,2435.4,2435.3,25.99089]
[1751041081090,5.6951,2435.4,2435.3,25.99089]
[1751041081276,6.51595,2435.4,2435.3,25.17]
[1751041081682,5.6951,2435.4,2435.3,25.99089]
[1751041082391,6.51595,2435.4,2435.3,25.99089]
[1751041082690,6.51595,2435.4,2435.3,25.17]
[1751041083793,7.83805,2435.4,2435.3,25.17]
[1751041085493,7.0172,2435.4,2435.3,25.17]
[1751041085986,7.83805,2435.4,2435.3,25.17]
[1751041088186,6.51595,2435.4,2435.3,25.17]
[1751041090192,6.51595,2435.4,2435.3,25.99089]
[1751041090390,5.6951,2435.4,2435.3,25.99089]
[1751041091093,6.51595,2435.4,2435.3,25.99089]
[1751041091295,6.51595,2435.4,2435.3,25.17]
[1751041091696,6.51595,2435.4,2435.3,25.99089]
[1751041094797,5.6951,2435.4,2435.3,25.99089]
[1751041095202,4.9971,2435.4,2435.3,25.99089]
[1751041095395,4.9971,2435.4,2435.3,27.33059]
[1751041096000,0.82079,2435.6,2435.5,0.82082]
[1751041096202,0.6936,2435.7,2435.5,0.82082]
[1751041096203,2.1261,2435.7,2435.6,0.82078]
[1751041096399,0.82078,2435.6,2435.5,35.7226]
[1751041097196,0.82078,2435.6,2435.5,4.0286]
[1751041097402,0.82078,2435.6,2435.5,31.694]
[1751041097606,2.98388,2435.6,2435.5,31.694]
[1751041097807,0.82082,2435.5,2435.4,0.82083]
[1751041098006,1.53491,2435.6,2435.5,0.82082]
[1751041098407,0.82081,2435.6,2435.5,0.82082]
[1751041098607,0.82082,2435.5,2435.4,32.51183]
[1751041098908,0.82081,2435.6,2435.4,32.51183]
[1751041099801,0.82081,2435.6,2435.5,0.82082]
[1751041101606,2.94687,2435.7,2435.4,31.691]
[1751041102000,0.82082,2435.5,2435.4,32.51184]
[1751041102806,0.82082,2435.5,2435.4,31.69]
[1751041103503,3.42862,2435.6,2435.4,31.69]
[1751041103703,0.82082,2435.5,2435.4,6.533]
[1751041104008,0.82105,2434.8,2434.7,6.533]
[1751041104306,0.82105,2434.8,2434.7,31.689]
[1751041104511,0.82105,2434.8,2434.7,32.51009]
[1751041105006,0.82104,2434.9,2434.8,0.82105]
[1751041105213,3.54902,2435.0,2434.9,0.82102]
[1751041105513,1.5106,2435.0,2434.9,0.82102]
[1751041105703,0.82102,2434.9,2434.8,29.75210933]
[1751041107406,4.6634,2435.0,2434.9,0.82102]
[1751041107708,3.8424,2435.0,2434.9,0.82102]
[1751041108905,3.8424,2435.0,2434.9,4.59608933]
[1751041109510,3.1528,2435.0,2434.9,5.30778933]
[1751041109707,1.51209,2435.3,2435.2,0.82092]
[1751041109908,7.539526,2435.3,2435.2,25.158]
[1751041110110,6.718636,2435.3,2435.2,25.97892]
[1751041110513,4.9971,2435.3,2435.2,25.97892]
[1751041111211,4.9971,2435.3,2435.2,29.18672]
[1751041111715,0.82085,2435.4,2435.3,0.82089]
[1751041111913,0.82085,2435.4,2435.3,25.97889]
[1751041112217,0.82084,2435.5,2435.4,0.82085]
[1751041112418,5.6794,2435.6,2435.5,0.82082]
[1751041112612,6.70954258,2435.6,2435.5,0.82082]
[1751041112810,5.6794,2435.6,2435.5,0.93392359]
[1751041113307,6.50018,2435.6,2435.5,0.11310359]
[1751041113811,7.86998,2435.6,2435.5,0.11310359]
[1751041114419,7.86998,2435.6,2435.5,0.93392359]
[1751041114721,5.6794,2435.6,2435.5,0.93392359]
[1751041115621,6.50018,2435.6,2435.5,0.93392359]
[1751041116118,7.94448,2435.6,2435.5,0.11310359]
[1751041116421,12.74585506,2435.6,2435.5,0.11310359]
[1751041116618,13.97078573,2435.6,2435.5,0.11310359]
[1751041116920,0.82089,2435.3,2435.2,31.688]
[1751041117111,4.02869,2435.3,2435.2,31.688]
[1751041118311,5.47299,2435.3,2435.2,31.688]
[1751041119219,2.05231,2435.2,2435.0,6.532]
[1751041119516,2.23865,2435.1,2435.0,6.532]
[1751041119911,2.96385,2435.1,2435.0,6.532]
[1751041120116,4.10502,2435.0,2434.6,0.6899]
[1751041120318,4.10502,2435.0,2434.2,13.69865268]
[1751041120319,0.82117,2434.5,2434.2,13.69865268]
[1751041120517,0.7252,2434.4,2434.3,25.97722]
[1751041121518,0.82122,2434.3,2434.2,9.7398]
[1751041121710,0.82122,2434.3,2434.2,34.8958]
[1751041122111,1.54641,2434.4,2434.3,0.82122]
[1751041122917,0.7252,2434.4,2434.2,6.532]
[1751041123111,0.7252,2434.4,2434.3,29.75428933]
[1751041125113,4.4043,2434.6,2434.5,4.59621933]
[1751041125114,3.745,2434.6,2434.5,4.59621933]
[1751041125420,3.745,2434.6,2434.5,39.50301933]
[1751041126122,3.0174,2434.6,2434.5,35.72795]
[1751041126314,0.8211,2434.7,2434.6,0.82112]
[1751041127223,4.14238,2434.8,2434.6,0.82112]
[1751041127417,4.14235,2434.8,2434.7,25.167]
[1751041128314,4.14235,2434.8,2434.7,25.98809]
[1751041128510,3.3213,2434.8,2434.7,29.76315933]
[1751041129523,3.3213,2434.8,2434.7,25.98809]
[1751041129727,0.84019,2435.0,2434.9,0.82099]
[1751041129915,0.84019,2435.0,2434.9,35.72179]
[1751041130115,0.0192,2435.0,2434.9,35.72179]
[1751041130818,0.0192,2435.0,2434.9,39.49685933]
[1751041131622,0.0192,2435.0,2434.9,35.72179]
[1751041131826,3.0643,2435.2,2434.9,34.9008]
[1751041132021,0.82099,2435.0,2434.9,31.693]
[1751041132228,0.82102,2434.9,2434.8,0.7157]
[1751041132519,0.82102,2434.9,2434.8,6.533]
[1751041132825,5.81812,2434.9,2434.8,31.701]
[1751041133125,7.93032,2434.9,2434.8,31.705]
[1751041133326,11.70538933,2434.9,2434.8,31.703]
[1751041133919,7.93032,2434.9,2434.8,31.703]
[1751041134721,7.93032,2434.9,2434.8,6.533]
[1751041135019,7.93032,2434.9,2434.8,31.704]
[1751041139427,3.77506933,2434.8,2434.5,6.532]
[1751041139631,4.02889,2434.7,2434.6,25.16]
[1751041139830,5.41379,2434.7,2434.6,25.16]
[1751041140131,0.82117,2434.5,2434.2,0.82123]
[1751041140333,3.2078,2434.4,2434.0,6.48065268]
[1751041140521,3.77506933,2434.2,2433.9,9.80485268]
[1751041140827,3.77506933,2434.2,2434.0,25.174]
[1751041140828,0.82132,2434.1,2434.0,25.174]
[1751041141032,2.24699,2434.1,2434.0,25.174]
[1751041141325,1.4257,2434.1,2434.0,25.174]
[1751041141724,2.24699,2434.1,2434.0,25.174]
[1751041142430,1.4257,2434.1,2434.0,25.99532]
[1751041142631,1.4257,2434.1,2434.0,25.174]
[1751041142931,1.4257,2434.1,2434.0,25.99532]
[1751041144227,1.4257,2434.1,2434.0,25.174]
[1751041144430,2.24699,2434.1,2434.0,25.174]
[1751041144930,1.4257,2434.1,2434.0,25.174]
[1751041145128,0.82132,2434.0,2433.9,6.532]
[1751041145320,5.32548933,2434.0,2433.9,31.694]
[1751041145523,2.93972,2434.0,2433.9,31.694]
[1751041145721,2.1184,2434.0,2433.9,32.51536]
[1751041145928,0.7291,2434.0,2433.9,31.694]
[1751041146130,1.55042,2434.0,2433.9,31.694]
[1751041146328,2.0976,2434.0,2433.9,31.694]
[1751041147030,2.91892,2434.0,2433.9,31.694]
[1751041147533,2.0976,2434.0,2433.9,31.694]
[1751041147733,2.91892,2434.0,2433.9,31.694]
[1751041147936,2.0976,2434.0,2433.9,31.694]
[1751041148228,2.91892,2434.0,2433.9,6.532]
[1751041148431,6.69398933,2434.0,2433.9,25.169]
[1751041148627,2.91892,2434.0,2433.9,25.169]
[1751041149922,7.0947,2434.0,2433.9,25.169]
[1751041150633,11.69108933,2434.0,2433.9,25.169]
[1751041151032,11.69108933,2434.0,2433.7,25.174]
[1751041151033,0.82136,2433.9,2433.7,25.174]
[1751041151238,3.77506933,2433.8,2433.5,6.533]
[1751041151535,1.36,2433.7,2433.6,25.166]
[1751041151738,1.36,2433.7,2433.5,6.533]
[1751041151933,0.6852,2433.6,2433.5,6.533]
[1751041152133,0.6852,2433.6,2433.5,31.702]
[1751041152432,1.50666,2433.6,2433.5,6.533]
[1751041152634,3.77506933,2433.4,2433.0,6.534]
[1751041152833,3.77506933,2433.2,2433.1,25.174]
[1751041153228,2.9241,2433.2,2433.0,25.179]
[1751041153434,2.1025,2433.2,2433.0,25.179]
[1751041153632,2.1025,2433.2,2433.1,0.82163]
[1751041153838,7.0996,2433.2,2433.1,0.82163]
[1751041154033,4.9971,2433.2,2433.1,4.59669933]
[1751041154234,3.2078,2433.3,2433.2,0.82159]
[1751041154534,4.02924,2433.7,2433.4,0.82151]
[1751041154735,4.6112,2433.7,2433.4,0.82151]
[1751041154939,4.6112,2433.7,2433.5,0.82149]
[1751041155134,4.6112,2433.7,2433.6,26.00946]
[1751041155135,3.2078,2433.7,2433.6,26.00946]
[1751041155335,5.0099,2433.7,2433.6,26.00946]
[1751041158144,5.0099,2433.7,2433.6,29.78452933]
[1751041158338,5.0099,2433.7,2433.6,31.20472933]
[1751041158543,1.8021,2433.7,2433.6,31.20472933]
[1751041159341,1.8021,2433.7,2433.6,2.24166]
[1751041159540,1.8021,2433.7,2433.6,32.54446]
[1751041160742,1.8021,2433.7,2433.2,3.9068]
[1751041160946,1.8021,2433.7,2433.5,7.35647]
[1751041161153,3.226,2433.7,2433.6,25.196]
[1751041161449,3.226,2433.7,2433.6,26.01746]
[1751041163145,1.8021,2433.7,2433.6,26.01746]
[1751041165847,1.8021,2433.7,2433.6,25.196]
[1751041166148,1.8021,2433.7,2433.6,26.01746]
[1751041166545,1.8021,2433.7,2433.6,29.79252933]
[1751041166946,1.8021,2433.7,2433.6,31.16582933]
[1751041167547,1.8021,2433.7,2433.6,27.39076]
[1751041167950,3.2078,2434.3,2434.1,0.82126]
[1751041168140,1.03578187,2434.2,2434.1,0.82126]
[1751041168340,6.03288187,2434.2,2434.1,0.82126]
[1751041169950,6.03288187,2434.2,2434.1,4.59632933]
[1751041170145,4.9971,2434.2,2434.1,4.59632933]
[1751041170745,4.9971,2434.2,2434.1,12.36126]
[1751041170940,3.2078,2434.6,2434.5,0.82116]
[1751041171140,3.2078,2434.6,2434.5,26.00416]
[1751041171340,3.2321,2434.6,2434.5,26.00416]
[1751041171947,4.26925495,2434.6,2434.5,26.00416]
[1751041172349,4.26925495,2434.6,2434.5,25.183]
[1751041172748,4.26925495,2434.6,2434.5,26.00416]
[1751041173258,4.26925495,2434.6,2434.5,25.183]